[Event "European Women Rapid-ch 2023"]
[Site "Monaco"]
[Date "2024.01.14"]
[Round "10.14"]
[White "Hoang, Thanh Trang"]
[Black "Khurtsilava, Inga"]
[Result "1-0"]
[ECO "E14"]
[WhiteElo "2382"]
[BlackElo "2186"]
[Annotator "RC"]
[PlyCount "85"]
[EventDate "2023.12.19"]
[EventType "swiss"]
[EventCountry "MNC"]
[SourceTitle "playchess.com"]
[Source "ChessBase"]
[SourceQuality "1"]
[TimeControl "900+10"]

1. d4 {[%emt 0:00:01]} Nf6 {[%emt 0:00:01]} 2. Nf3 {[%emt 0:00:03]} b6 {[%emt 0:00:04]} 3. e3 {[%emt 0:00:06]} Bb7 {[%emt 0:00:01]} 4. Bd3 {[%emt 0:00:04]} e6 {[%emt 0:00:10]} 5. O-O {[%emt 0:00:04]} Be7 {[%emt 0:00:20]} 6. c4 {[%emt 0:00:05]} O-O {[%emt 0:00:59]} 7. Nc3 {[%emt 0:00:06]} d5 {[%emt 0:00:14]} 8. cxd5 {[%emt 0:00:10]} exd5 {[%emt 0:01:18]} 9. b3 {[%emt 0:00:10]} Nbd7 {[%emt 0:00:16]} 10. Bb2 {[%emt 0:00:06]} a6 {[%emt 0:01:00]} 11. Rc1 {[%emt 0:00:30]} Bd6 {[%emt 0:00:02]} 12. Qc2 {[%emt 0:00:18]} Re8 {[%emt 0:00:08]} 13. Ne2 {[%emt 0:00:14]} Ne4 {[%emt 0:00:03]} 14. Ne5 {[%emt 0:02:26]} Nxe5 {[%emt 0:03:20]} 15. dxe5 {[%emt 0:00:12]} Bxe5 {[%emt 0:00:05]} 16. Bxe5 {[%emt 0:00:49]} Rxe5 {[%emt 0:00:02]} 17. Qxc7 {[%emt 0:01:22]} Re7 {[%emt 0:01:33]} 18. Qxd8+ {[%emt 0:00:31]} Rxd8 {[%emt 0:00:01]} 19. Rfd1 {[%emt 0:00:12]} a5 {[%emt 0:01:07]} 20. Bxe4 {[%emt 0:00:37]} Rxe4 {[%emt 0:00:02]} 21. Rc7 {[%emt 0:00:10]} Ba6 {[%emt 0:00:19]} 22. Nc3 {[%emt 0:00:20]} Re5 {[%emt 0:01:00]} 23. Rc6 {[%emt 0:03:06]} Re6 {[%emt 0:00:11]} 24. Rxd5 {[%emt 0:00:26]} Rde8 {[%emt 0:02:41]} 25. Rc7 {[%emt 0:00:36]} h6 {[%emt 0:00:49]} 26. Rdd7 {[%emt 0:00:19]} Rf6 {[%emt 0:00:40]} 27. Nd5 {[%emt 0:00:15]} Rfe6 {[%emt 0:02:12]} 28. Rxf7 {[%emt 0:00:06]} Rd6 {[%emt 0:00:02]} 29. Rxg7+ {[%emt 0:00:26]} Kh8 {[%emt 0:00:03]} 30. Rh7+ {[%emt 0:00:31]} Kg8 {[%emt 0:00:02]} 31. Rhd7 {[%emt 0:00:45]} Rxd7 {[%emt 0:01:22]} 32. Rxd7 {[%emt 0:00:07]} Re6 {[%emt 0:00:10]} 33. f3 {[%emt 0:00:24]} Bb5 {[%emt 0:00:07]} 34. Rd8+ {[%emt 0:00:11]} Kf7 {[%emt 0:00:03]} 35. Nc7 {[%emt 0:00:08]} Re5 {[%emt 0:00:06]} 36. Nxb5 {[%emt 0:00:13]} Rxb5 {[%emt 0:00:01]} 37. Rb8 {[%emt 0:00:15]} Ke6 {[%emt 0:00:03]} 38. Kf2 {[%emt 0:00:04]} Kd5 {[%emt 0:00:01]} 39. Ke2 {[%emt 0:00:09]} Kc5 {[%emt 0:00:01]} 40. e4 {[%emt 0:00:18]} Kb4 {[%emt 0:00:00]} 41. a4 {[%emt 0:00:05]} Rg5 {[%emt 0:00:41]} 42. Rxb6+ {[%emt 0:00:04]} Kc3 {[%emt 0:00:01]} 43. g3 {[%emt 0:00:10]} 1-0

[Event "European Women Rapid-ch 2023"]
[Site "Monaco"]
[Date "2024.01.14"]
[Round "10.15"]
[White "Vega Gutierrez, Sabrina"]
[Black "Radeva, Viktoria"]
[Result "1-0"]
[ECO "C00"]
[WhiteElo "2378"]
[BlackElo "2325"]
[Annotator "RC"]
[PlyCount "71"]
[EventDate "2023.12.19"]
[EventType "swiss"]
[EventCountry "MNC"]
[SourceTitle "playchess.com"]
[Source "ChessBase"]
[SourceQuality "1"]
[TimeControl "900+10"]

1. e4 {[%emt 0:00:01]} e6 {[%emt 0:00:01]} 2. b3 {[%emt 0:00:03]} d5 {[%emt 0:00:03]} 3. Bb2 {[%emt 0:00:04]} dxe4 {[%emt 0:00:36]} 4. Nc3 {[%emt 0:00:02]} Nf6 {[%emt 0:00:04]} 5. Qe2 {[%emt 0:00:08]} Be7 {[%emt 0:00:15]} 6. Nxe4 {[%emt 0:00:48]} Nxe4 {[%emt 0:00:27]} 7. Qxe4 {[%emt 0:00:03]} Bf6 {[%emt 0:00:03]} 8. d4 {[%emt 0:00:07]} O-O {[%emt 0:01:28]} 9. O-O-O {[%emt 0:00:08]} a5 {[%emt 0:00:48]} 10. a4 {[%emt 0:00:14]} c6 {[%emt 0:01:02]} 11. Nf3 {[%emt 0:00:37]} Qd5 {[%emt 0:03:32]} 12. Qe3 {[%emt 0:00:03]} b5 {[%emt 0:00:24]} 13. axb5 {[%emt 0:01:21]} cxb5 {[%emt 0:00:09]} 14. Bd3 {[%emt 0:00:02]} Bb7 {[%emt 0:00:08]} 15. h4 {[%emt 0:04:18]} a4 {[%emt 0:02:02]} 16. Ng5 {[%emt 0:00:04]} g6 {[%emt 0:00:15]} 17. Nxh7 {[%emt 0:03:39]} Kxh7 {[%emt 0:00:04]} 18. h5 {[%emt 0:00:01]} Kg8 {[%emt 0:04:01]} 19. hxg6 {[%emt 0:00:02]} fxg6 {[%emt 0:00:02]} 20. Rh6 {[%emt 0:01:52]} Kf7 {[%emt 0:00:26]} 21. Rh7+ {[%emt 0:01:15]} Ke8 {[%emt 0:00:02]} 22. Bxb5+ {[%emt 0:03:14]} Qxb5 {[%emt 0:00:27]} 23. Qxe6+ {[%emt 0:00:02]} Kd8 {[%emt 0:00:03]} 24. Qd6+ {[%emt 0:00:06]} Nd7 {[%emt 0:00:03]} 25. Rxd7+ {[%emt 0:00:06]} Qxd7 {[%emt 0:00:02]} 26. Qxf8+ {[%emt 0:00:02]} Kc7 {[%emt 0:00:08]} 27. Qxf6 {[%emt 0:00:02]} axb3 {[%emt 0:00:08]} 28. Re1 {[%emt 0:00:37]} Ra6 {[%emt 0:00:22]} 29. Qf4+ {[%emt 0:00:14]} Kb6 {[%emt 0:00:25]} 30. Qf8 {[%emt 0:00:03]} Qc6 {[%emt 0:01:35]} 31. Re6 {[%emt 0:00:40]} Ka7 {[%emt 0:00:25]} 32. Rxc6 {[%emt 0:00:05]} Rxc6 {[%emt 0:00:01]} 33. Qa3+ {[%emt 0:00:05]} Ra6 {[%emt 0:00:08]} 34. Qxb3 {[%emt 0:00:06]} Bxg2 {[%emt 0:00:02]} 35. d5 {[%emt 0:00:06]} Ka8 {[%emt 0:00:20]} 36. Be5 {[%emt 0:00:07]} 1-0

[Event "European Women Rapid-ch 2023"]
[Site "Monaco"]
[Date "2024.01.14"]
[Round "10.16"]
[White "Krasteva, Beloslava"]
[Black "Papp, Petra"]
[Result "1-0"]
[ECO "D85"]
[WhiteElo "2251"]
[BlackElo "2267"]
[Annotator "ChessBase"]
[PlyCount "69"]
[EventDate "2023.12.19"]
[EventType "swiss"]
[EventCountry "MNC"]
[SourceTitle "playchess.com"]
[Source "ChessBase"]
[SourceQuality "1"]
[TimeControl "900+10"]

1. d4 {[%emt 0:00:01]} Nf6 {[%emt 0:00:01]} 2. c4 {[%emt 0:00:02]} g6 {[%emt 0:00:02]} 3. Nc3 {[%emt 0:00:02]} d5 {[%emt 0:00:01]} 4. cxd5 {[%emt 0:00:30]} Nxd5 {[%emt 0:00:02]} 5. e4 {[%emt 0:00:02]} Nxc3 {[%emt 0:00:02]} 6. bxc3 {[%emt 0:00:02]} Bg7 {[%emt 0:00:02]} 7. Be3 {[%emt 0:00:02]} c5 {[%emt 0:00:01]} 8. Qd2 {[%emt 0:00:21]} Qa5 {[%emt 0:00:10]} 9. Nf3 {[%emt 0:00:04]} O-O {[%emt 0:00:03]} 10. Be2 {[%emt 0:00:11]} Rd8 {[%emt 0:00:17]} 11. Rc1 {[%emt 0:00:25]} Bg4 {[%emt 0:03:31]} 12. d5 {[%emt 0:00:19]} Nd7 {[%emt 0:00:53]} 13. c4 {[%emt 0:02:54]} Qc7 {[%emt 0:00:04]} 14. h3 {[%emt 0:01:08]} Bxf3 {[%emt 0:00:05]} 15. gxf3 {[%emt 0:00:08]} Nf6 {[%emt 0:00:57]} 16. Bd3 {[%emt 0:00:52]} e5 {[%emt 0:00:11]} 17. f4 {[%emt 0:00:27]} exf4 {[%emt 0:00:29]} 18. Bxf4 {[%emt 0:00:02]} Qe7 {[%emt 0:00:02]} 19. f3 {[%emt 0:00:46]} Nh5 {[%emt 0:00:23]} 20. Be3 {[%emt 0:00:33]} Be5 {[%emt 0:00:42]} 21. Bg5 {[%emt 0:01:04]} Bf6 {[%emt 0:00:58]} 22. h4 {[%emt 0:02:04]} h6 {[%emt 0:00:27]} 23. Bxh6 {[%emt 0:01:05]} Bxh4+ {[%emt 0:00:14]} 24. Kd1 {[%emt 0:00:11]} Qf6 {[%emt 0:02:58]} 25. f4 {[%emt 0:00:18]} Kh7 {[%emt 0:01:09]} 26. e5 {[%emt 0:00:58]} Qe7 {[%emt 0:01:37]} 27. Bg5 {[%emt 0:03:43]} Bxg5 {[%emt 0:00:13]} 28. Rxh5+ {[%emt 0:00:01]} Bh6 {[%emt 0:00:02]} 29. Qh2 {[%emt 0:00:08]} Qf8 {[%emt 0:00:35]} 30. Kc2 {[%emt 0:00:09]} f5 {[%emt 0:00:58]} 31. exf6 {[%emt 0:00:03]} Rxd5 {[%emt 0:02:42]} 32. cxd5 {[%emt 0:00:12]} c4 {[%emt 0:00:01]} 33. Rxh6+ {[%emt 0:00:13]} Qxh6 {[%emt 0:00:01]} 34. Qxh6+ {[%emt 0:00:03]} Kxh6 {[%emt 0:00:01]} 35. Rh1# {[%emt 0:00:02]} 1-0

[Event "European Women Rapid-ch 2023"]
[Site "Monaco"]
[Date "2024.01.14"]
[Round "10.17"]
[White "Sliwicka, Alicja"]
[Black "Unuk, Laura"]
[Result "1-0"]
[ECO "B12"]
[WhiteElo "2311"]
[BlackElo "2346"]
[Annotator "RC"]
[PlyCount "107"]
[EventDate "2023.12.19"]
[EventType "swiss"]
[EventCountry "MNC"]
[SourceTitle "playchess.com"]
[Source "ChessBase"]
[SourceQuality "1"]
[TimeControl "900+10"]

1. e4 {[%emt 0:00:01]} c6 {[%emt 0:00:01]} 2. d4 {[%emt 0:00:01]} d5 {[%emt 0:00:02]} 3. e5 {[%emt 0:00:02]} Bf5 {[%emt 0:00:25]} 4. h4 {[%emt 0:00:02]} h5 {[%emt 0:00:01]} 5. Bd3 {[%emt 0:00:01]} Bxd3 {[%emt 0:00:03]} 6. Qxd3 {[%emt 0:00:02]} Qa5+ {[%emt 0:00:03]} 7. Nc3 {[%emt 0:00:07]} e6 {[%emt 0:00:04]} 8. Nf3 {[%emt 0:00:03]} Qa6 {[%emt 0:00:17]} 9. Qd1 {[%emt 0:00:03]} Ne7 {[%emt 0:00:48]} 10. Ne2 {[%emt 0:00:04]} Nf5 {[%emt 0:00:03]} 11. O-O {[%emt 0:00:10]} Nd7 {[%emt 0:01:21]} 12. Ng3 {[%emt 0:00:07]} Ne7 {[%emt 0:03:54]} 13. Ng5 {[%emt 0:00:13]} c5 {[%emt 0:00:17]} 14. Re1 {[%emt 0:00:38]} g6 {[%emt 0:01:12]} 15. c3 {[%emt 0:02:02]} Qb6 {[%emt 0:01:25]} 16. Be3 {[%emt 0:00:41]} Qc7 {[%emt 0:00:15]} 17. b3 {[%emt 0:01:02]} Bh6 {[%emt 0:00:32]} 18. Qf3 {[%emt 0:00:45]} Bxg5 {[%emt 0:01:30]} 19. Bxg5 {[%emt 0:00:03]} c4 {[%emt 0:02:15]} 20. Rab1 {[%emt 0:00:29]} b6 {[%emt 0:00:13]} 21. bxc4 {[%emt 0:01:05]} Qxc4 {[%emt 0:00:02]} 22. Rb4 {[%emt 0:00:02]} Qxa2 {[%emt 0:00:24]} 23. c4 {[%emt 0:00:23]} a5 {[%emt 0:00:17]} 24. Rb3 {[%emt 0:00:39]} a4 {[%emt 0:00:01]} 25. Rc3 {[%emt 0:00:05]} a3 {[%emt 0:00:02]} 26. cxd5 {[%emt 0:00:30]} Qxd5 {[%emt 0:00:46]} 27. Ne4 {[%emt 0:00:18]} Nf5 {[%emt 0:00:27]} 28. Nd6+ {[%emt 0:04:02]} Kf8 {[%emt 0:01:27]} 29. Qxd5 {[%emt 0:00:05]} exd5 {[%emt 0:00:01]} 30. Nxf5 {[%emt 0:00:44]} gxf5 {[%emt 0:00:03]} 31. Rc7 {[%emt 0:00:02]} a2 {[%emt 0:00:24]} 32. Ra1 {[%emt 0:00:49]} Ke8 {[%emt 0:00:01]} 33. Rxa2 {[%emt 0:00:05]} Rb8 {[%emt 0:00:19]} 34. Raa7 {[%emt 0:00:37]} f6 {[%emt 0:00:02]} 35. Rxd7 {[%emt 0:00:28]} fxg5 {[%emt 0:00:02]} 36. hxg5 {[%emt 0:00:02]} Rg8 {[%emt 0:00:39]} 37. f4 {[%emt 0:00:01]} b5 {[%emt 0:00:44]} 38. Rdb7 {[%emt 0:00:10]} Rc8 {[%emt 0:00:08]} 39. Rxb5 {[%emt 0:00:26]} h4 {[%emt 0:00:02]} 40. Rh7 {[%emt 0:00:16]} h3 {[%emt 0:00:03]} 41. gxh3 {[%emt 0:00:24]} Ra8 {[%emt 0:01:00]} 42. Kg2 {[%emt 0:00:19]} Kf8 {[%emt 0:00:14]} 43. Kg3 {[%emt 0:00:10]} Rg6 {[%emt 0:00:14]} 44. Rh8+ {[%emt 0:00:05]} Rg8 {[%emt 0:00:02]} 45. Rxg8+ {[%emt 0:00:05]} Kxg8 {[%emt 0:00:03]} 46. Rxd5 {[%emt 0:00:02]} Kf7 {[%emt 0:00:08]} 47. Rd6 {[%emt 0:00:05]} Ra3+ {[%emt 0:00:15]} 48. Kh4 {[%emt 0:00:06]} Rf3 {[%emt 0:00:02]} 49. g6+ {[%emt 0:00:06]} Kg7 {[%emt 0:00:05]} 50. Kg5 {[%emt 0:00:02]} Rg3+ {[%emt 0:00:02]} 51. Kxf5 {[%emt 0:00:02]} Rxh3 {[%emt 0:00:04]} 52. Rd7+ {[%emt 0:00:01]} Kf8 {[%emt 0:00:40]} 53. Kf6 {[%emt 0:00:04]} Ke8 {[%emt 0:00:04]} 54. Rh7 {[%emt 0:00:07]} 1-0

[Event "European Women Rapid-ch 2023"]
[Site "Monaco"]
[Date "2024.01.14"]
[Round "10.18"]
[White "Hejazipour, Mitra"]
[Black "Rodriguez Redondo, Adhara"]
[Result "1-0"]
[ECO "E14"]
[WhiteElo "2356"]
[BlackElo "2130"]
[Annotator "ChessBase"]
[PlyCount "183"]
[EventDate "2023.12.19"]
[EventType "swiss"]
[EventCountry "MNC"]
[SourceTitle "playchess.com"]
[Source "ChessBase"]
[SourceQuality "1"]
[TimeControl "900+10"]

1. Nf3 {[%emt 0:00:02]} d5 {[%emt 0:00:01]} 2. c4 {[%emt 0:00:03]} e6 {[%emt 0:00:02]} 3. b3 {[%emt 0:00:03]} Nf6 {[%emt 0:00:05]} 4. Bb2 {[%emt 0:00:02]} Be7 {[%emt 0:00:01]} 5. e3 {[%emt 0:00:03]} O-O {[%emt 0:00:14]} 6. d4 {[%emt 0:00:16]} b6 {[%emt 0:00:09]} 7. Bd3 {[%emt 0:00:14]} Bb7 {[%emt 0:00:01]} 8. cxd5 {[%emt 0:00:13]} exd5 {[%emt 0:00:05]} 9. O-O {[%emt 0:00:05]} Nbd7 {[%emt 0:00:35]} 10. Nc3 {[%emt 0:00:26]} Re8 {[%emt 0:00:25]} 11. Ne2 {[%emt 0:00:37]} Bd6 {[%emt 0:00:29]} 12. Ng3 {[%emt 0:00:07]} g6 {[%emt 0:00:32]} 13. Rc1 {[%emt 0:00:18]} Qe7 {[%emt 0:01:00]} 14. Bb5 {[%emt 0:00:17]} a6 {[%emt 0:04:00]} 15. Bc6 {[%emt 0:00:21]} Bxc6 {[%emt 0:00:10]} 16. Rxc6 {[%emt 0:00:01]} Rac8 {[%emt 0:00:07]} 17. Qd3 {[%emt 0:00:14]} a5 {[%emt 0:00:38]} 18. Rfc1 {[%emt 0:00:07]} Nb8 {[%emt 0:02:19]} 19. R6c2 {[%emt 0:00:08]} Nbd7 {[%emt 0:00:01]} 20. Ne2 {[%emt 0:00:32]} Nf8 {[%emt 0:01:51]} 21. Ne5 {[%emt 0:00:51]} c5 {[%emt 0:00:43]} 22. f4 {[%emt 0:00:49]} Ne4 {[%emt 0:00:36]} 23. Nc3 {[%emt 0:02:57]} Nxc3 {[%emt 0:00:36]} 24. Rxc3 {[%emt 0:00:39]} Bxe5 {[%emt 0:01:50]} 25. fxe5 {[%emt 0:00:42]} Nd7 {[%emt 0:01:07]} 26. R3c2 {[%emt 0:01:38]} Rcd8 {[%emt 0:00:36]} 27. Rf2 {[%emt 0:00:32]} Qe6 {[%emt 0:00:45]} 28. Rcf1 {[%emt 0:00:26]} Re7 {[%emt 0:00:01]} 29. Qb5 {[%emt 0:00:47]} Rc8 {[%emt 0:00:24]} 30. h3 {[%emt 0:00:21]} Rc7 {[%emt 0:00:29]} 31. Ba3 {[%emt 0:01:06]} Rc8 {[%emt 0:00:12]} 32. Qe2 {[%emt 0:00:31]} Rc7 {[%emt 0:00:12]} 33. Qf3 {[%emt 0:00:06]} Rc8 {[%emt 0:00:13]} 34. Qg3 {[%emt 0:00:03]} Rc7 {[%emt 0:00:10]} 35. Qg5 {[%emt 0:00:07]} Nf8 {[%emt 0:00:09]} 36. Rf6 {[%emt 0:00:14]} Qd7 {[%emt 0:00:03]} 37. Rxb6 {[%emt 0:00:13]} Ne6 {[%emt 0:00:06]} 38. Qh4 {[%emt 0:00:06]} Re8 {[%emt 0:00:15]} 39. Rd6 {[%emt 0:00:19]} Qb5 {[%emt 0:00:11]} 40. Rxd5 {[%emt 0:00:27]} Qd3 {[%emt 0:00:13]} 41. Qf2 {[%emt 0:00:14]} Qe4 {[%emt 0:00:09]} 42. Rd6 {[%emt 0:00:08]} cxd4 {[%emt 0:00:11]} 43. exd4 {[%emt 0:00:03]} Ng5 {[%emt 0:00:13]} 44. Qf4 {[%emt 0:00:34]} Qxf4 {[%emt 0:00:09]} 45. Rxf4 {[%emt 0:00:01]} Rc2 {[%emt 0:00:03]} 46. Rd7 {[%emt 0:00:36]} Rxa2 {[%emt 0:00:04]} 47. Bd6 {[%emt 0:00:26]} Ra1+ {[%emt 0:00:21]} 48. Kh2 {[%emt 0:00:05]} f5 {[%emt 0:00:12]} 49. exf6 {[%emt 0:00:16]} Nf7 {[%emt 0:00:02]} 50. Be7 {[%emt 0:00:12]} Rb1 {[%emt 0:00:14]} 51. Rf3 {[%emt 0:00:10]} Rb8 {[%emt 0:00:11]} 52. Rc7 {[%emt 0:00:19]} h6 {[%emt 0:00:13]} 53. Rcc3 {[%emt 0:00:38]} Ng5 {[%emt 0:00:06]} 54. Rfe3 {[%emt 0:00:11]} Rd1 {[%emt 0:00:11]} 55. h4 {[%emt 0:00:12]} Nf7 {[%emt 0:00:11]} 56. Red3 {[%emt 0:00:05]} Re1 {[%emt 0:00:08]} 57. d5 {[%emt 0:00:08]} Ne5 {[%emt 0:00:12]} 58. Rd4 {[%emt 0:00:21]} Re2 {[%emt 0:00:09]} 59. d6 {[%emt 0:00:18]} Rb7 {[%emt 0:00:11]} 60. Kg3 {[%emt 0:00:32]} Kf7 {[%emt 0:00:11]} 61. Kf4 {[%emt 0:00:24]} Ke6 {[%emt 0:00:06]} 62. Kg3 {[%emt 0:01:23]} g5 {[%emt 0:00:13]} 63. hxg5 {[%emt 0:00:02]} hxg5 {[%emt 0:00:01]} 64. Ra4 {[%emt 0:00:11]} Rb2 {[%emt 0:00:18]} 65. Re4 {[%emt 0:00:24]} R2xb3 {[%emt 0:00:09]} 66. Rxb3 {[%emt 0:00:08]} Rxb3+ {[%emt 0:00:01]} 67. Kh2 {[%emt 0:00:05]} Rb5 {[%emt 0:00:21]} 68. Kg3 {[%emt 0:00:19]} Rd5 {[%emt 0:00:11]} 69. Kf2 {[%emt 0:00:13]} Rd2+ {[%emt 0:00:11]} 70. Ke3 {[%emt 0:00:08]} Rd3+ {[%emt 0:00:03]} 71. Ke2 {[%emt 0:00:02]} Rd5 {[%emt 0:00:01]} 72. g3 {[%emt 0:00:11]} Rb5 {[%emt 0:00:17]} 73. Kd2 {[%emt 0:00:04]} Rd5+ {[%emt 0:00:18]} 74. Kc2 {[%emt 0:00:04]} Rb5 {[%emt 0:00:06]} 75. Kc3 {[%emt 0:00:02]} Rc5+ {[%emt 0:00:12]} 76. Kb3 {[%emt 0:00:05]} Rd5 {[%emt 0:00:05]} 77. Ka4 {[%emt 0:00:03]} Kf7 {[%emt 0:00:18]} 78. Rxe5 {[%emt 0:00:19]} Rxe5 {[%emt 0:00:09]} 79. d7 {[%emt 0:00:01]} Rxe7 {[%emt 0:00:12]} 80. d8=Q {[%emt 0:00:06]} Kxf6 {[%emt 0:00:02]} 81. Qf8+ {[%emt 0:00:26]} Rf7 {[%emt 0:00:03]} 82. Qd6+ {[%emt 0:00:06]} Kf5 {[%emt 0:00:07]} 83. Qd5+ {[%emt 0:00:07]} Kg6 {[%emt 0:00:01]} 84. Qe4+ {[%emt 0:00:06]} Kf6 {[%emt 0:00:26]} 85. Kxa5 {[%emt 0:00:06]} Re7 {[%emt 0:00:04]} 86. Qf3+ {[%emt 0:00:04]} Kg6 {[%emt 0:00:03]} 87. Kb4 {[%emt 0:00:06]} Re6 {[%emt 0:00:09]} 88. Kc5 {[%emt 0:00:03]} Rf6 {[%emt 0:00:01]} 89. Qe4+ {[%emt 0:00:04]} Kh6 {[%emt 0:00:37]} 90. Kd5 {[%emt 0:00:07]} Rg6 {[%emt 0:00:15]} 91. Ke5 {[%emt 0:00:08]} Rg7 {[%emt 0:00:08]} 92. Kf6 {[%emt 0:00:13]} 1-0

[Event "European Women Rapid-ch 2023"]
[Site "Monaco"]
[Date "2024.01.14"]
[Round "10.19"]
[White "Javakhishvili, Lela"]
[Black "Hryshchenko, Kamila"]
[Result "1/2-1/2"]
[ECO "E63"]
[WhiteElo "2433"]
[BlackElo "2192"]
[Annotator "RC"]
[PlyCount "59"]
[EventDate "2023.12.19"]
[EventType "swiss"]
[EventCountry "MNC"]
[SourceTitle "playchess.com"]
[Source "ChessBase"]
[SourceQuality "1"]
[TimeControl "900+10"]

1. d4 {[%emt 0:00:13]} d6 {[%emt 0:00:02]} 2. Nf3 {[%emt 0:00:01]} g6 {[%emt 0:00:01]} 3. g3 {[%emt 0:00:06]} Bg7 {[%emt 0:00:02]} 4. Bg2 {[%emt 0:00:01]} Nf6 {[%emt 0:00:03]} 5. O-O {[%emt 0:00:03]} O-O {[%emt 0:00:05]} 6. c4 {[%emt 0:00:01]} Nc6 {[%emt 0:00:06]} 7. Nc3 {[%emt 0:00:02]} a6 {[%emt 0:00:02]} 8. Bf4 {[%emt 0:00:04]} h6 {[%emt 0:00:42]} 9. h3 {[%emt 0:00:04]} Nd7 {[%emt 0:01:07]} 10. e4 {[%emt 0:00:28]} e5 {[%emt 0:00:16]} 11. Be3 {[%emt 0:00:05]} Re8 {[%emt 0:00:21]} 12. d5 {[%emt 0:00:06]} Ne7 {[%emt 0:00:14]} 13. Qd2 {[%emt 0:00:30]} Kh7 {[%emt 0:00:03]} 14. b4 {[%emt 0:00:23]} Rf8 {[%emt 0:00:22]} 15. c5 {[%emt 0:00:33]} f5 {[%emt 0:00:20]} 16. Rac1 {[%emt 0:00:51]} Nf6 {[%emt 0:00:22]} 17. exf5 {[%emt 0:02:16]} Nxf5 {[%emt 0:01:40]} 18. g4 {[%emt 0:00:03]} Nxe3 {[%emt 0:00:37]} 19. fxe3 {[%emt 0:00:02]} Qe7 {[%emt 0:00:40]} 20. cxd6 {[%emt 0:00:25]} cxd6 {[%emt 0:00:30]} 21. Qc2 {[%emt 0:00:59]} Bd7 {[%emt 0:00:19]} 22. Nd2 {[%emt 0:01:00]} Rac8 {[%emt 0:01:15]} 23. Nde4 {[%emt 0:00:06]} Nxe4 {[%emt 0:01:58]} 24. Qxe4 {[%emt 0:00:42]} Bf6 {[%emt 0:01:32]} 25. Bf3 {[%emt 0:01:49]} Bh4 {[%emt 0:01:14]} 26. Ne2 {[%emt 0:00:47]} Bb5 {[%emt 0:01:01]} 27. Rxc8 {[%emt 0:00:35]} Rxc8 {[%emt 0:00:02]} 28. Rc1 {[%emt 0:00:55]} Rc7 {[%emt 0:01:07]} 29. Rc3 Rxc3 {[%emt 0:00:10]} 30. Nc1 {[%emt 0:00:12]} 1/2-1/2

[Event "European Women Rapid-ch 2023"]
[Site "Monaco"]
[Date "2024.01.14"]
[Round "10.20"]
[White "Guichard, Pauline"]
[Black "Mrvova, Alena"]
[Result "1-0"]
[ECO "D38"]
[WhiteElo "2385"]
[BlackElo "2160"]
[Annotator "RC"]
[PlyCount "61"]
[EventDate "2023.12.19"]
[EventType "swiss"]
[EventCountry "MNC"]
[SourceTitle "playchess.com"]
[Source "ChessBase"]
[SourceQuality "1"]
[TimeControl "900+10"]

1. d4 {[%emt 0:00:02]} d5 {[%emt 0:00:04]} 2. c4 {[%emt 0:00:01]} e6 {[%emt 0:00:02]} 3. Nc3 {[%emt 0:00:03]} Nf6 {[%emt 0:00:03]} 4. Nf3 {[%emt 0:00:02]} Bb4 {[%emt 0:00:04]} 5. cxd5 {[%emt 0:00:04]} exd5 {[%emt 0:00:07]} 6. Bg5 {[%emt 0:00:03]} O-O {[%emt 0:00:22]} 7. e3 {[%emt 0:00:05]} c6 {[%emt 0:00:12]} 8. Bd3 {[%emt 0:00:11]} h6 {[%emt 0:00:02]} 9. Bh4 {[%emt 0:00:09]} Be7 {[%emt 0:00:07]} 10. O-O {[%emt 0:00:38]} b6 {[%emt 0:00:20]} 11. Rc1 {[%emt 0:00:37]} c5 {[%emt 0:00:12]} 12. dxc5 {[%emt 0:00:08]} bxc5 {[%emt 0:00:01]} 13. Bxf6 {[%emt 0:00:25]} Bxf6 {[%emt 0:00:01]} 14. Nxd5 {[%emt 0:00:16]} Bxb2 {[%emt 0:00:38]} 15. Rxc5 {[%emt 0:00:04]} Na6 {[%emt 0:00:32]} 16. Rxc8 {[%emt 0:00:45]} Rxc8 {[%emt 0:00:01]} 17. Bxa6 {[%emt 0:00:02]} Rc6 {[%emt 0:00:15]} 18. Bd3 {[%emt 0:01:12]} g6 {[%emt 0:00:09]} 19. e4 {[%emt 0:00:06]} Rc1 {[%emt 0:01:35]} 20. Qd2 {[%emt 0:01:26]} Rxf1+ {[%emt 0:00:04]} 21. Bxf1 {[%emt 0:00:03]} Bg7 {[%emt 0:00:03]} 22. h4 {[%emt 0:00:08]} Re8 {[%emt 0:00:14]} 23. Qf4 {[%emt 0:00:23]} Re6 {[%emt 0:01:54]} 24. Bc4 {[%emt 0:00:58]} Rd6 {[%emt 0:00:54]} 25. Ne5 {[%emt 0:02:37]} Bxe5 {[%emt 0:00:01]} 26. Qxe5 {[%emt 0:00:02]} Re6 {[%emt 0:00:01]} 27. Qf4 {[%emt 0:00:22]} Kg7 {[%emt 0:00:01]} 28. Ne3 {[%emt 0:01:06]} Rf6 {[%emt 0:00:20]} 29. Qe5 {[%emt 0:00:02]} Qd6 {[%emt 0:00:04]} 30. Qc3 {[%emt 0:00:27]} Qf4 {[%emt 0:00:48]} 31. f3 {[%emt 0:00:23]} 1-0

[Event "European Women Rapid-ch 2023"]
[Site "Monaco"]
[Date "2024.01.14"]
[Round "10.21"]
[White "Paasikangas, Johanna"]
[Black "Savina, Anastasia"]
[Result "0-1"]
[ECO "E97"]
[WhiteElo "2038"]
[BlackElo "2340"]
[Annotator "ChessBase"]
[PlyCount "86"]
[EventDate "2023.12.19"]
[EventType "swiss"]
[EventCountry "MNC"]
[SourceTitle "playchess.com"]
[Source "ChessBase"]
[SourceQuality "1"]
[TimeControl "900+10"]

1. d4 {[%emt 0:00:06]} Nf6 {[%emt 0:00:12]} 2. c4 {[%emt 0:00:04]} g6 {[%emt 0:00:01]} 3. Nc3 {[%emt 0:00:02]} Bg7 {[%emt 0:00:02]} 4. e4 {[%emt 0:00:02]} d6 {[%emt 0:00:01]} 5. Nf3 {[%emt 0:00:02]} O-O {[%emt 0:00:03]} 6. Be2 {[%emt 0:00:03]} e5 {[%emt 0:00:02]} 7. O-O {[%emt 0:00:12]} Nc6 {[%emt 0:00:03]} 8. d5 {[%emt 0:00:22]} Ne7 {[%emt 0:00:02]} 9. b4 {[%emt 0:00:23]} a5 {[%emt 0:00:11]} 10. bxa5 {[%emt 0:00:02]} Rxa5 {[%emt 0:00:28]} 11. a4 {[%emt 0:00:06]} c5 {[%emt 0:00:26]} 12. Bd2 {[%emt 0:00:28]} Ra6 {[%emt 0:00:16]} 13. Qc2 {[%emt 0:00:25]} Ne8 {[%emt 0:01:16]} 14. Ra2 {[%emt 0:02:21]} h6 {[%emt 0:00:48]} 15. Ne1 {[%emt 0:01:04]} f5 {[%emt 0:00:05]} 16. f4 {[%emt 0:00:32]} exf4 {[%emt 0:00:31]} 17. Bxf4 {[%emt 0:00:35]} g5 {[%emt 0:02:05]} 18. Bc1 {[%emt 0:00:02]} f4 {[%emt 0:00:43]} 19. Nb5 {[%emt 0:00:14]} Ng6 {[%emt 0:00:29]} 20. Bh5 {[%emt 0:01:22]} Ne5 {[%emt 0:00:23]} 21. Bxe8 {[%emt 0:00:09]} Rxe8 {[%emt 0:00:21]} 22. Bb2 {[%emt 0:00:27]} Qe7 {[%emt 0:02:25]} 23. Nf3 {[%emt 0:03:26]} Ng4 {[%emt 0:00:35]} 24. Bxg7 {[%emt 0:00:37]} Qxg7 {[%emt 0:00:06]} 25. Re1 {[%emt 0:00:40]} Ne3 {[%emt 0:00:14]} 26. Qd3 {[%emt 0:00:20]} Bg4 {[%emt 0:01:25]} 27. Nd2 {[%emt 0:00:43]} Bh5 {[%emt 0:01:07]} 28. Nf1 {[%emt 0:00:28]} Ng4 {[%emt 0:00:46]} 29. Qc2 {[%emt 0:01:21]} Bg6 {[%emt 0:00:15]} 30. h3 {[%emt 0:00:42]} Ne5 {[%emt 0:00:51]} 31. Qc3 {[%emt 0:00:15]} h5 {[%emt 0:00:15]} 32. Nh2 {[%emt 0:00:18]} g4 {[%emt 0:00:18]} 33. Kh1 {[%emt 0:00:30]} Re7 {[%emt 0:00:28]} 34. a5 {[%emt 0:00:14]} Qf6 {[%emt 0:01:26]} 35. Rae2 {[%emt 0:00:25]} Qh4 {[%emt 0:00:31]} 36. Rf1 {[%emt 0:00:12]} Qg5 {[%emt 0:01:00]} 37. Ree1 {[%emt 0:00:25]} Kh7 {[%emt 0:00:04]} 38. Re2 {[%emt 0:00:02]} Nf7 {[%emt 0:00:32]} 39. Rfe1 {[%emt 0:00:18]} Ra8 {[%emt 0:00:02]} 40. Qd2 {[%emt 0:00:36]} Rae8 {[%emt 0:00:07]} 41. Qc2 {[%emt 0:00:26]} Qh4 {[%emt 0:00:38]} 42. Qd3 {[%emt 0:00:32]} f3 {[%emt 0:00:16]} 43. gxf3 {[%emt 0:00:08]} g3 {[%emt 0:00:51]} 0-1